Cogmind - Beta 10.2 @@@ ROGUE MODE // 2022.03.15 @ 04:02:13 Player: Yanche Result: Destroyed by G-47 Trooper with Particle Gun Performance ------------- Evolutions (2) 1000 Regions Visited (8) 1600 Robots Destroyed (45) 225 Value Destroyed (1213) 1213 Prototype IDs (5) 100 Alien Tech Used (0) 0 Bonus (386) 386 TOTAL SCORE: 4524 Bonus ------- High Alert Combat Kills 11 Follower Combat Kills 75 Aligned with FarCom 300 Cogmind --------- Core Integrity 0/550 Matter 153/300 Energy 280/280 System Corruption 5% Temperature Cool (15) Movement Walking (180) Ox2 Location -8/Storage Parts ------- > --- POWER (1) -------- Heavy Ion Engine > --- PROPULSION (4) --- Carbon-fiber Leg > --- UTILITY (4) ------ High-capacity Storage Unit Advanced Terrain Scanner Improved Terrain Scan Processor Advanced Targeting Computer > --- WEAPON (2) ------- Beam Rifle > --- INVENTORY (12) --- Improved Ion Engine Heavy Ion Engine Improved Heat Sink Compact Battery (300) Drone Bay (2/2) Beam Rifle Particle Gun Assault Rifle Heavy Assault Rifle Rocket Launcher Field Lobotomy Kit Peak State ------------ > --- POWER ------------ Heavy Ion Engine > --- PROPULSION ------- Aluminum Leg Aluminum Leg Carbon-fiber Leg Carbon-fiber Leg > --- UTILITY ---------- High-capacity Storage Unit Advanced Terrain Scanner Improved Terrain Scan Processor Advanced Targeting Computer > --- WEAPON ----------- Heavy Assault Rifle Improved Assault Rifle > --- INVENTORY -------- Heavy Ion Engine Improved Heat Sink High-capacity Battery EM Pulse Gun Small Laser Beam Rifle Assault Rifle Advanced EMP Blaster Rocket Launcher Field Lobotomy Kit [Rating: 28] Favorites ----------- Power Light Nuclear Core Engine Ion Engine Power Core Light Nuclear Core Propulsion Compact Wheel Leg Carbon-fiber Leg Wheel Compact Wheel Flight Unit Improved Flight Unit Utility High-capacity Storage Unit Device Advanced Terrain Scanner Storage High-capacity Storage Unit Processor Improved Terrain Scan Processor Weapon Small Laser Energy Gun Small Laser Ballistic Gun Improved Assault Rifle Launcher Rocket Launcher Special Weapon Mining Laser Build | -11 -10 -10 -9 -9 -9 -8 -8 -8 ------- Run | Scr Mat Min Mat Min Exi Min Mat Sto Slots Evolved 4 | . . . 2 . . . 2 . Power . | . . . . . . . . . Propulsion 2 | . . . 2 . . . . . Utility 2 | . . . . . . . 2 . Weapon . | . . . . . . . . . Parts Attached 52 | 8 . 12 6 . 1 1 5 19 Power 5 | 1 . 2 1 . . . . 1 Engine 4 | 1 . 2 . . . . . 1 Core 1 | . . . 1 . . . . . Reactor . | . . . . . . . . . Propulsion 14 | 2 . 3 2 . . 1 . 6 Treads . | . . . . . . . . . Leg 5 | . . . . . . . . 5 Wheel 8 | 2 . 3 2 . . 1 . . Hover . | . . . . . . . . . Flight 1 | . . . . . . . . 1 Utility 12 | 1 . 3 1 . 1 . 3 3 Device 6 | . . 2 1 . . . 1 2 Storage 4 | 1 . 1 . . 1 . . 1 Processor 2 | . . . . . . . 2 . Hackware . | . . . . . . . . . Protection . | . . . . . . . . . Artifact . | . . . . . . . . . Weapon 21 | 4 . 4 2 . . . 2 9 Energy Gun 10 | 4 . 3 1 . . . . 2 Energy Cannon . | . . . . . . . . . Ballistic Gun 7 | . . 1 1 . . . . 5 Ballistic Cannon . | . . . . . . . . . Launcher 3 | . . . . . . . 2 1 Special Weapon 1 | . . . . . . . . 1 Impact Weapon . | . . . . . . . . . Slashing Weapon . | . . . . . . . . . Piercing Weapon . | . . . . . . . . . Special Melee Weapon . | . . . . . . . . . Unidentified Prototypes 5 | . . 1 1 . . . 1 2 Parts Lost 23 | . . 6 1 . . . . 16 Power 3 | . . 1 1 . . . . 1 Propulsion 9 | . . 1 . . . . . 8 Utility 2 | . . 1 . . . . . 1 Weapon 9 | . . 3 . . . . . 6 Highest Loss Streak 6 | . . 5 1 . . . . 6 Average Slot Usage (%) 89 | . 85 84 86 100 100 100 100 82 Engine 5 | . 14 13 4 . . . . 5 Core 4 | . . . 6 11 11 11 9 1 Leg 5 | . . . . . . . . 16 Wheel 24 | . 28 22 31 44 44 44 36 5 Device 9 | . . 8 11 11 11 11 11 7 Storage 11 | . 14 14 11 11 11 11 9 10 Processor 7 | . . . . . . . 15 18 Energy Gun 8 | . 28 14 11 11 11 11 2 4 Ballistic Gun 10 | . . 9 11 11 11 11 9 11 Launcher 1 | . . . . . . . 6 1 Naked Turns . | . . . . . . . . . Heaviest Build 50 | 10 10 12 14 14 42 42 48 50 Greatest Support 54 | 26 26 32 54 54 54 54 54 54 Greatest Overweight (x) 14 | 1 . 1 . . . . . 14 Average Overweight (x) . | . . . . . . . . . Largest Inventory Capacity 12 | 6 6 6 6 6 12 12 12 12 Average Capacity 9 | 5 6 6 6 6 10 12 12 12 Most Carried 12 | 2 2 6 6 6 8 11 11 12 Average Carried 7 | 1 2 3 5 5 6 10 10 10 Final Capacity 12 | 6 6 6 6 6 12 12 12 12 Final Carried 11 | 2 2 5 6 6 8 11 11 11 Class Distribution -------------------- 35% | Scavenger-Mutant 24% | Scavenger-Skirmisher 22% | Mutant 17% | Skirmisher Dominant Class ---------------- Mutant | -10/Materials Mutant | -10/Mines Scavenger-Mutant | -9/Materials Scavenger-Mutant | -9/Mines Scavenger-Mutant | -9/Exiles Scavenger-Skirmisher | -8/Mines Scavenger-Skirmisher | -8/Materials Skirmisher | -8/Storage Resources | -11 -10 -10 -9 -9 -9 -8 -8 -8 ----------- Run | Scr Mat Min Mat Min Exi Min Mat Sto Matter Collected 954 | 237 . 143 102 . . 23 . 449 Remotely . | . . . . . . . . . Salvage Created 1567 | . . 449 232 . . 41 120 725 Parts 101 | . . 17 22 . . 7 14 41 Haulers Intercepted 1 | . . . 1 . . . . . Recyclers Shooed 2 | . . 2 . . . . . . Parts Field Recycled . | . . . . . . . . . Retrieved Matter . | . . . . . . . . . Parts Self-Destructed . | . . . . . . . . . Prevented . | . . . . . . . . . Kills | -11 -10 -10 -9 -9 -9 -8 -8 -8 ------- Run | Scr Mat Min Mat Min Exi Min Mat Sto Combat Hostiles Destroyed 36 | . . 9 6 . . . 4 17 Guns 27 | . . 9 6 . . . 2 10 Cannons 4 | . . . . . . . . 4 AOE 4 | . . . . . . . 2 2 Classes Destroyed 10 | . . 3 3 . . 2 . 2 Worker 1 | . . . . . . 1 . . Builder 2 | . . . . . . 1 1 . Hauler 1 | . . . 1 . . . . . Recycler 2 | . . 2 . . . . . . Operator 2 | . . . 1 . . . . 1 Watcher 1 | . . . 1 . . . . . Swarmer 13 | . . 3 4 . . . 2 4 Grunt 15 | . . 6 2 . . . 2 5 Sentry 7 | . . . . . . . . 7 Hunter 1 | . . . . . . . . 1 Best Kill Streak 7 | . . 5 6 . . 2 5 7 Combat Bots Only 7 | . . 4 6 . . . 4 7 Max Kills in Single Turn 3 | . . 1 2 . . 2 2 3 Gunslinging 1 | . . . 1 . . . . . Exploded 2 | . . . . . . . 1 2 Melee . | . . . . . . . . . Uniques/NPCs Destroyed . | . . . . . . . . . Combat | -11 -10 -10 -9 -9 -9 -8 -8 -8 -------- Run | Scr Mat Min Mat Min Exi Min Mat Sto Damage Taken 2788 | . . 554 137 . . 2 186 1909 Core 729 | . . 136 31 . . . 16 546 Absorbed by Shields . | . . . . . . . . . Core Remaining (%) 79 | 100 . 45 . . . 92 . . Volleys Fired 141 | . . 37 19 . . 1 10 74 Largest 2 | . . 2 2 . . 2 2 2 Hottest 123 | . . 90 63 . . 63 59 123 Shots Fired 246 | . . 55 38 . . 2 15 136 Gun 229 | . . 55 38 . . 2 10 124 Cannon . | . . . . . . . . . Launcher 11 | . . . . . . . 5 6 Special 6 | . . . . . . . . 6 Kinetic 153 | . . 13 19 . . 1 10 110 Thermal 56 | . . 26 19 . . 1 . 10 Explosive 3 | . . . . . . . 3 . Electromagnetic 34 | . . 16 . . . . 2 16 Robot Hit Streak 19 | . . 7 10 . . 4 10 19 Robot Miss Streak 2 | . . 2 1 . . . 1 2 Penetration Max . | . . . . . . . . . Secondary Targets 1 | . . . 1 . . . . . Max Gunslinging Chain 1 | . . . 1 . . . . . Shots Hit Robots 185 | . . 41 26 . . 1 11 106 Core Hits 79 | . . 23 11 . . 2 9 34 Critical Hits . | . . . . . . . . . Critical Kills . | . . . . . . . . . Critical Parts Destroyed . | . . . . . . . . . Melee Attacks . | . . . . . . . . . Impact . | . . . . . . . . . Slashing . | . . . . . . . . . Piercing . | . . . . . . . . . Sneak Attacks . | . . . . . . . . . Combat Hostiles . | . . . . . . . . . Follow-up Attacks . | . . . . . . . . . Damage Inflicted 3112 | . . 613 308 . . 28 369 1794 Guns 2286 | . . 491 308 . . 24 124 1339 Cannons . | . . . . . . . . . Explosions 725 | . . 121 . . . . 245 359 Melee . | . . . . . . . . . Ramming 5 | . . 1 . . . 4 . . Kinetic 1559 | . . 90 143 . . 12 124 1190 Thermal 676 | . . 346 165 . . 12 . 153 Explosive 134 | . . . . . . . 134 . Electromagnetic 738 | . . 176 . . . . 111 451 Impact . | . . . . . . . . . Slashing . | . . . . . . . . . Piercing . | . . . . . . . . . Highest Corruption 5 | . . . . . . . . 5 Average Corruption 2 | . . . . . . . . 2 Corruption Purged . | . . . . . . . . . Effects 12 | . . . . . . . . 12 Message Errors 2 | . . . . . . . . 2 Matter Fused 3 | . . . . . . . . 3 Energy Discharges 2 | . . . . . . . . 2 Parts Rejected 1 | . . . . . . . . 1 Data Loss (minor) 1 | . . . . . . . . 1 Data Loss (major) 1 | . . . . . . . . 1 Targeting Errors 2 | . . . . . . . . 2 Overload Shots . | . . . . . . . . . Overflow Damage 45 | . . 42 . . . . . 3 Projectiles . | . . . . . . . . . Explosions 45 | . . 42 . . . . . 3 Melee . | . . . . . . . . . Knockbacks . | . . . . . . . . . Impact . | . . . . . . . . . Kinetic . | . . . . . . . . . Secondary . | . . . . . . . . . Self-Inflicted Damage 178 | . . 86 . . . 2 43 47 Shots 7 | . . 2 . . . . 2 3 Rammed 2 | . . 1 . . . 1 . . Targets Rammed 2 | . . 1 . . . 1 . . Kicked . | . . . . . . . . . Crushed . | . . . . . . . . . Highest Temperature 155 | . . 155 5 . . . 4 33 Average Temperature 50 | . . 71 5 . . . 4 8 Received Heat Transfer 942 | . . 252 24 . . . 63 603 Siege Activations . | . . . . . . . . . Robots Corrupted 1 | . . . . . . . . 1 Combat Hostiles 1 | . . . . . . . . 1 Parts Fried 2 | . . 1 . . . . . 1 Impact Corruptions . | . . . . . . . . . Robots Melted . | . . . . . . . . . Combat Hostiles . | . . . . . . . . . Parts Melted . | . . . . . . . . . Heat Transferred 1434 | . . 686 375 . . 25 . 348 Parts Sabotaged . | . . . . . . . . . Parts Stolen . | . . . . . . . . . Parts Stripped . | . . . . . . . . . Power Chain Reactions 2 | . . 2 . . . . . . Missiles Intercepted . | . . . . . . . . . Alert | -11 -10 -10 -9 -9 -9 -8 -8 -8 ------- Run | Scr Mat Min Mat Min Exi Min Mat Sto Peak Influence 405 | . 17 261 273 106 . 10 119 405 Initial 106 | . . 6 25 106 . . 3 50 Average 139 | . 9 100 200 106 . 6 78 218 Maximum Alert Level 2 | . . 1 1 . . . . 2 Low Security (%) 65 | 100 100 76 31 100 . 100 100 38 Level 1 33 | . . 23 68 . . . . 57 Level 2 1 | . . . . . . . . 3 Level 3 . | . . . . . . . . . Level 4 . | . . . . . . . . . Level 5 . | . . . . . . . . . High Security . | . . . . . . . . . Max Security . | . . . . . . . . . Squads Dispatched 6 | . . . 3 . . . . 3 Investigation . | . . . . . . . . . Extermination . | . . . . . . . . . Reinforcement 5 | . . . 3 . . . . 2 Assault . | . . . . . . . . . Garrison 1 | . . . . . . . . 1 Intercept . | . . . . . . . . . Construction Impeded . | . . . . . . . . . Haulers Reinforced . | . . . . . . . . . Stealth | -11 -10 -10 -9 -9 -9 -8 -8 -8 --------- Run | Scr Mat Min Mat Min Exi Min Mat Sto Distress Signals 4 | . . . . . . . 1 3 Communications Jammed . | . . . . . . . . . Distress Signals . | . . . . . . . . . Times Spotted 64 | . . 13 16 . . . 5 30 Peak Tracking Total 7 | . . 3 4 . . . 3 7 Tactical Retreats 7 | . . 4 . . . . . 3 Traps | -11 -10 -10 -9 -9 -9 -8 -8 -8 ------- Run | Scr Mat Min Mat Min Exi Min Mat Sto Traps Triggered 2 | . . . . . . . . 2 Indirectly . | . . . . . . . . . Trap Hack Attempts . | . . . . . . . . . Triggered . | . . . . . . . . . Disarmed . | . . . . . . . . . Reprogrammed . | . . . . . . . . . Reused . | . . . . . . . . . Traps Extracted . | . . . . . . . . . Installed . | . . . . . . . . . Triggered . | . . . . . . . . . Machines | -11 -10 -10 -9 -9 -9 -8 -8 -8 ---------- Run | Scr Mat Min Mat Min Exi Min Mat Sto Machines Disabled . | . . . . . . . . . Max in Single Turn . | . . . . . . . . . Machines Sabotaged . | . . . . . . . . . Garrisons Compromised . | . . . . . . . . . Overloaded Fab Kills . | . . . . . . . . . Fab Network Shutdowns . | . . . . . . . . . Hacking | -11 -10 -10 -9 -9 -9 -8 -8 -8 --------- Run | Scr Mat Min Mat Min Exi Min Mat Sto Machines Accessed 10 | . 2 1 1 . . . 1 5 Terminals 10 | . 2 1 1 . . . 1 5 Fabricators . | . . . . . . . . . Repair Stations . | . . . . . . . . . Recycling Units . | . . . . . . . . . Scanalyzers . | . . . . . . . . . Garrison Access . | . . . . . . . . . Total Hacks 18 | . 5 1 4 . . . 1 7 Successful 11 | . 3 1 3 . . . . 4 Failed 7 | . 2 . 1 . . . 1 3 Catastrophic . | . . . . . . . . . Database Lockouts . | . . . . . . . . . Manual 4 | . 2 . . . 1 . . 1 Terminals 18 | . 5 1 4 . . . 1 7 Fabricators . | . . . . . . . . . Repair Stations . | . . . . . . . . . Recycling Units . | . . . . . . . . . Scanalyzers . | . . . . . . . . . Garrison Access . | . . . . . . . . . Terminal Hacks 11 | . 3 1 3 . . . . 4 Robot Analysis 1 | . 1 . . . . . . . Open Door 4 | . . . . . . . . 4 Branch Access Points 2 | . 1 . 1 . . . . . Emergency Access Points 2 | . 1 . 1 . . . . . Dispatch Records 1 | . . 1 . . . . . . Recall Investigation 1 | . . . 1 . . . . . Fabricator Hacks . | . . . . . . . . . Repair Station Hacks . | . . . . . . . . . Recycling Unit Hacks . | . . . . . . . . . Scanalyzer . | . . . . . . . . . Garrison Access Hacks . | . . . . . . . . . Unauthorized Hacks . | . . . . . . . . . Terminals . | . . . . . . . . . Fabricators . | . . . . . . . . . Repair Stations . | . . . . . . . . . Recycling Units . | . . . . . . . . . Scanalyzers . | . . . . . . . . . Garrison Access . | . . . . . . . . . Data Cores Recovered 1 | . . . 1 . . . . . Used 1 | . . . 1 . . . . . Hacking Detections 5 | . 2 1 . . . . 1 1 Full Trace Events 1 | . 1 . . . . . . . Feedback Events . | . . . . . . . . . Feedback Blocked . | . . . . . . . . . Robot Schematics Acquired . | . . . . . . . . . Robots Built . | . . . . . . . . . Matter . | . . . . . . . . . Time . | . . . . . . . . . Total Robot Build Rating . | . . . . . . . . . Part Schematics Acquired . | . . . . . . . . . Parts Built . | . . . . . . . . . Matter . | . . . . . . . . . Time . | . . . . . . . . . Total Part Build Rating . | . . . . . . . . . Parts Repaired . | . . . . . . . . . Time . | . . . . . . . . . Parts Recycled . | . . . . . . . . . Recycled Matter . | . . . . . . . . . Retrieved Matter . | . . . . . . . . . Retrieved Components . | . . . . . . . . . Parts Scanalyzed . | . . . . . . . . . Part Schematics Acquired . | . . . . . . . . . Parts Damaged . | . . . . . . . . . Bothacking | -11 -10 -10 -9 -9 -9 -8 -8 -8 ------------ Run | Scr Mat Min Mat Min Exi Min Mat Sto Used RIF Installer . | . . . . . . . . . Robots Hacked . | . . . . . . . . . Non-combat . | . . . . . . . . . Combat . | . . . . . . . . . Robot Hacks Applied . | . . . . . . . . . Relay Couplers Released . | . . . . . . . . . Robots Rewired . | . . . . . . . . . Allies Hacked . | . . . . . . . . . Hacks Repelled . | . . . . . . . . . Allies | -11 -10 -10 -9 -9 -9 -8 -8 -8 -------- Run | Scr Mat Min Mat Min Exi Min Mat Sto Total Allies 1 | . . 1 . . . . . . Largest Group 1 | . . 1 1 . . . . . Highest-Rated Group 31 | . . 31 31 . . . . . Highest-Rated Ally 31 | . . 31 31 . . . . . Total Orders . | . . . . . . . . . Ally Attacks 10 | . . . 10 . . . . . Total Damage 192 | . . . 192 . . . . . Kills 4 | . . . 4 . . . . . Allies Corrupted . | . . . . . . . . . Allies Melted . | . . . . . . . . . Intel | -11 -10 -10 -9 -9 -9 -8 -8 -8 ------- Run | Scr Mat Min Mat Min Exi Min Mat Sto Robot Analysis Total 1 | . 1 . . . . . . . Derelict Logs Recovered 3 | . . 1 . 2 . . . . Drone Launches . | . . . . . . . . . Drone Recoveries . | . . . . . . . . . Exploration | -11 -10 -10 -9 -9 -9 -8 -8 -8 ------------- Run | Scr Mat Min Mat Min Exi Min Mat Sto Turns Passed 3360 | 39 32 760 311 253 328 251 332 1054 Spaces Moved 2422 | 29 36 677 244 259 353 265 114 445 Core 9 | 3 . . . . . . . 6 Treads . | . . . . . . . . . Legs 360 | . . . . . . . . 360 Wheels 2053 | 26 36 677 244 259 353 265 114 79 Hover . | . . . . . . . . . Flight . | . . . . . . . . . Fastest Speed 50 | 50 90 90 92 92 92 92 92 92 Average Speed 101 | 90 90 91 94 92 92 92 92 143 Slowest Speed 750 | 100 90 100 100 92 92 92 92 750 Overloaded Moves . | . . . . . . . . . Propulsion Burnouts . | . . . . . . . . . Robots Hopped . | . . . . . . . . . Cave-ins Triggered . | . . . . . . . . . Exploration Rate (%) 43 | 3 9 99 24 44 71 75 9 58 Regions Visited 8 Branch Regions 5 Pre-discovered Areas 1 | . . . . 1 . . . . Known Exits Taken 3 | . 1 . 1 . . . 1 . Unknown Exits Taken 5 | 1 . 1 . 1 1 1 . . Scrap Searched 2 | . . 1 . . . 1 . . Spaces Dug . | . . . . . . . . . Terrain Destroyed 30 | . . 12 . . . . 18 . Melee . | . . . . . . . . . Projectile . | . . . . . . . . . AOE 30 | . . 12 . . . . 18 . Terrain Rammed . | . . . . . . . . . Walls Destroyed . | . . . . . . . . . Machines Disabled . | . . . . . . . . . Actions | -11 -10 -10 -9 -9 -9 -8 -8 -8 --------- Run | Scr Mat Min Mat Min Exi Min Mat Sto Total 3057 | 37 35 764 285 274 356 269 325 712 Wait 403 | . . 26 13 14 . . 193 157 Move 2414 | 28 35 676 243 258 352 264 113 445 Hop . | . . . . . . . . . Pick Up 27 | 1 . 7 1 1 2 2 2 11 Fast Attach 21 | 6 . 4 4 . . . 2 5 Attach 15 | . . 3 1 . . . 2 9 Detach 1 | . . . 1 . . . . . Swap 16 | 2 . 5 1 . 1 1 1 5 Drop 17 | . . 5 2 1 1 . 2 6 Fire 141 | . . 37 19 . . 1 10 74 Melee . | . . . . . . . . . Ram 2 | . . 1 . . . 1 . . Kick . | . . . . . . . . . Crush . | . . . . . . . . . Escape Stasis . | . . . . . . . . . Rewire . | . . . . . . . . . Trap . | . . . . . . . . . Miscellaneous . | . . . . . . . . . Route ------- -11/Scrapyard -10/Materials (discovered 2 exits: *Min x2) -10/Mines (discovered 2 exits: *Mat x2) -9/Materials -9/Mines (discovered 2 exits: *Mat / *Exi) -9/Exiles (discovered 2 exits: [*Min x2]) -8/Mines (discovered 2 exits: *Mat x2) -8/Materials -8/Storage (discovered 1 exit: [Rec]) History --------- Turn | Location | Event 18 | -11/Scrapyard | Discovered new exit (range 16) 40 | -11/Scrapyard | Entered Materials 43 | -10/Materials | Discovered new exit (range 11) 49 | -10/Materials | Identified exit to Mines 72 | -10/Materials | Entered Mines 94 | -10/Mines | Found a damaged Exp. Sensor Array with a note attached 96 | -10/Mines | Found Prototype Device 97 | -10/Mines | Identified Exp. Sensor Array 198 | -10/Mines | Lost 5 parts (1p1u3w) 426 | -10/Mines | Core integrity fell below 50% 452 | -10/Mines | Discovered new exit (range 10) 479 | -10/Mines | Discovered new exit (range 10) 658 | -10/Mines | Build established: Mutant 663 | -10/Mines | Received a Mining Laser from a helpful Derelict 832 | -10/Mines | Entered Materials 832 | -9/Materials | Accompanied by 1 ally 832 | -9/Materials | Evolved 2 slots: Propulsion x2 876 | -9/Materials | Identified exit to Mines 1029 | -9/Materials | Build established: Scavenger-Mutant 1143 | -9/Materials | Entered Mines 1196 | -9/Mines | Discovered new exit (range 16) 1201 | -9/Mines | Learned location of Zion (-6) 1217 | -9/Mines | Learned Materials trap positions 1322 | -9/Mines | Received a Rocket Launcher from a helpful Derelict 1392 | -9/Mines | Deemed a non-threat by the Exiles lab entrance 1392 | -9/Mines | Discovered new exit (range 5) 1396 | -9/Mines | Entered Exiles 1410 | -9/Exiles | Discovered new exit (range 15) 1436 | -9/Exiles | Met 8R-AWN 1450 | -9/Exiles | Met EX-HEX 1476 | -9/Exiles | Met EX-BIN 1527 | -9/Exiles | Met EX-DEC 1612 | -9/Exiles | Aligned with FarCom system 1612 | -9/Exiles | Given EX-Vault access code 1634 | -9/Exiles | Opened EX-Vault 1637 | -9/Exiles | Found Prototype Special Weapon 1658 | -9/Exiles | Warned to stay clear of 0b10 Research branches 1715 | -9/Exiles | Discovered new exit (range 12) 1724 | -9/Exiles | Left Exiles lab with Field Lobotomy Kit 1724 | -9/Exiles | Entered Mines 1844 | -8/Mines | Discovered new exit (range 16) 1970 | -8/Mines | Discovered new exit (range 6) 1975 | -8/Mines | Entered Materials 1975 | -8/Materials | Evolved 2 slots: Utility x2 1976 | -8/Materials | Identified exit to Storage 1977 | -8/Materials | Loaded intel: 19 trap records 2016 | -8/Materials | Build established: Scavenger-Skirmisher 2307 | -8/Materials | Entered Storage 2508 | -8/Storage | Lost 6 parts (1p3n2w) 2520 | -8/Storage | Destroyed 7 combat bots 2551 | -8/Storage | Core integrity fell below 50% 2576 | -8/Storage | Lost 3 parts (1n1u1w) 2833 | -8/Storage | Core integrity fell below 20% 2897 | -8/Storage | Lost 4 parts (3n1w) 3086 | -8/Storage | Discovered new exit (range 20) 3187 | -8/Storage | Build established: Skirmisher 3341 | -8/Storage | Garrison activated, responded to threat 3361 | -8/Storage | Destroyed by G-47 Trooper with Particle Gun Last Messages --------------- System corrupted: Matter fused (-10). Connecting with Door Terminal... System corrupted: Matter fused (-5). K-01 Serf cleans the Storage Shell. System corrupted: Matter fused (-6). W-25 Informer sends out distress signal. System corrupted: Substantial component data lost. K-01 Serf cleans the Storage Shell. 3E%&ERUREWW A,XH,= LZ K-01 Serf cleans the Storage Shell. JB6E6FBKBGUW7CHADH1KGGMVT6 K-01 Serf cleans the Storage Shell. Connecting with Door Terminal... EM Pulse Gun destroyed. Aluminum Leg destroyed. G-47 Trooper calls for garrison reinforcements. ALERT: Activating Garrison Access S001. G-47 Trooper destroyed. K-01 Serf collects debris. System corrupted: Hvy. Assault Rifle rejected. Map ----- +----------------------------------------------------+ | ####### ####***############### # | | ####### #### #?#### # # | | ####### ###T ###?## ? ### | | ################+######+############ ####### | | ############ | | ####T####### | | ## " + | | ######[######+#########+##+################# | | ######!#?#### #### ? ? ? # ##???## | | ##?### #####T #### ? ? ?#?#?#?? | | ###### ###### ##### # ???#?#?## | | ?###?# #### !#### # ? ?"? | | ###### ####== ! #### ?#? # " | | ####?# ####== ===################# +? " | | ##?### ####== ===################# #####?# | | ##?### #######################?### ?####??# | | ###?## ############### ? #?####? ??####?# | | ###### ############### ? ###### ####### | | ###### ############### ###### #####?# | | ###### #############?# ###### ####### | | ###### #################"""####?## ####### | | ###### ################T ###### ####### | | ###?## ################# ? ###### w#?#"""# | | ###### ########"#########+######## ###"G"? | | ###### ##### " ###" "? | | #?### #### < " @%! g [ ? | | ##### #### "#T### ? | | ##### ############# """ """ """ ""?? | | ###### ############## """ """ """ ???? | | ###?## ## #### """ """ """ """ | | #?#### ## # | | ###### ## """" + | | ?##### ## "" " # | | ###### + """? " # ########+#########+# | | ## + ## " """ # # g ! # ? ??? | | #T # ## " "" + + # ???? | | ## ### ## """" ######## #?? ?? ? | | #! !##### ######## # ? | | #!] ###?##########?###### ! # ??? ? | | #! !###?###?##?########## !# ? ?? | | #! !#####?############### # ?????? | | ###########?#####??##################????#?? | | | | | | | | | | | | | | | | | +----------------------------------------------------+ Best States ------------- Heat Dissipation 42 Energy Generation 14 Energy Capacity 680 Matter Stores 300 Matter Capacity 300 Sight Range 16 Robot Scan Range 30 Terrain Scan Range 20 Terrain Scan Density 110 Evasion (%) 42 Targeting Accuracy 8 Item Schematics ----------------- None Robot Schematics ------------------ None Fabricated ------------ Nothing Alien Tech Used ----------------- None Achievements -------------- None Challenges ------------ None Game ------ Seed DisruptorScatterLauncher Manual? 0 Play Time 00:37:48 Cumulative 64.7 hours Start 2022.03.15 @ 03:25:09 End 2022.03.15 @ 04:02:13 Sessions 1 Manual Loads 0 Difficulty Rogue Special Mode None Game No. 58 Rogue 48 Adventurer 0 Explorer 10 Win Type - Total 0 Types 0/0/0/0/0/0/0/0/0 Lore% 46 Gallery% 43 Achievement% 30 Wizard Run 0 Options --------- ASCII 0 Keyboard 0 Movement Numpad Keybinds 0 Fullscreen 1 Font 18/SmallcapsGlow Map View 76x50 Tactical HUD 0 Map Filters NONE Filters NONE Steam 1 RUN: b182b442-b2e3-42cc-ac62-55a828a258ce